fUST/lending_fUST_20250729
["ID","MTS","AMOUNT","RATE_DAILY","PERIOD"]
[375825759,1753753847974,-1416.76,0.00019726,2]
[375825761,1753753847984,-460.0,0.00019726,2]
[375825763,1753753847993,-1961.96,0.00019726,2]
[375825765,1753753848003,-460.0,0.00019726,2]
[375825767,1753753848012,-460.0,0.00019726,2]
[375825768,1753753848021,-462.3832443,0.00019726,2]
[375825770,1753753848031,-460.0,0.00019726,2]
[375825772,1753753848041,-462.32976446,0.00019726,2]
[375825774,1753753848053,-460.0,0.00019726,2]
[375825776,1753753848064,-460.0,0.00019726,2]
[375825778,1753753848074,-460.0,0.00019726,2]
[375825780,1753753848084,-460.0,0.00019726,2]
[375825782,1753753848094,-463.09632691,0.00019726,2]
[375825784,1753753848104,-462.10793454,0.00019726,2]
[375825786,1753753848113,-460.0,0.00019726,2]
[375825788,1753753848124,-460.0,0.00019726,2]
[375825790,1753753848134,-460.0,0.00019726,2]
[375825792,1753753848143,-460.0,0.00019726,2]
[375825794,1753753848153,-461.83930287,0.00019726,2]
[375825796,1753753848163,-460.0,0.00019726,2]
[375825798,1753753848172,-460.0,0.00019726,2]
[375825800,1753753848182,-460.0,0.00019726,2]
[375825801,1753753848191,-460.0,0.00019726,2]
[375825803,1753753848201,-460.0,0.00019726,2]
[375825805,1753753848210,-460.0,0.00019726,2]
[375825807,1753753848219,-460.0,0.00019726,2]
[375825809,1753753848230,-1570.48,0.00019726,2]
[375825811,1753753848239,-687.97,0.00019726,2]
[375825813,1753753848249,-460.0,0.00019726,2]
[375825815,1753753848261,-469.60778712,0.00019726,2]
[375825817,1753753848272,-460.0,0.00019726,2]
[375825819,1753753848282,-1981.62,0.00019726,2]
[375825820,1753753848292,-469.03041702,0.00019726,2]
[375825822,1753753848304,-460.0,0.00019726,2]
[375825824,1753753848314,-463.19667887,0.00019726,2]
[375825826,1753753848324,-460.0,0.00019726,2]
[375825828,1753753848334,-460.0,0.00019726,2]
[375825830,1753753848345,-460.0,0.00019726,2]
[375825832,1753753848356,-460.0,0.00019726,2]
[375825834,1753753848367,-4096.91,0.00019726,2]
[375825836,1753753848377,-469.29484175,0.00019726,2]
[375825838,1753753848387,-1320.75,0.00019726,2]
[375825839,1753753848398,-460.0,0.00019726,2]
[375825841,1753753848408,-1488.78,0.00019726,2]
[375825843,1753753848419,-460.0,0.00019726,2]
[375825845,1753753848428,-460.0,0.00019726,2]
[375825847,1753753848439,-1227.47,0.00019726,2]
[375825849,1753753848449,-460.0,0.00019726,2]
[375825851,1753753848459,-460.0,0.00019726,2]
[375825853,1753753848469,-460.0,0.00019726,2]
[375825855,1753753848479,-460.0,0.00019726,2]
[375825857,1753753848490,-460.0,0.00019726,2]
[375825859,1753753848500,-460.0,0.00019726,2]
[375825861,1753753848510,-504.73,0.00019726,2]
[375825862,1753753848521,-470.3795699,0.00019726,2]
[375825864,1753753848531,-460.0,0.00019726,2]
[375825866,1753753848541,-460.0,0.00019726,2]
[375825868,1753753848554,-460.0,0.00019726,2]
[375825870,1753753848564,-460.0,0.00019726,2]
[375825872,1753753848574,-543.91,0.00019726,2]
[375825874,1753753848584,-460.0,0.00019726,2]
[375825876,1753753848594,-460.0,0.00019726,2]
[375825877,1753753848604,-460.0,0.00019726,2]
[375825879,1753753848614,-460.0,0.00019726,2]
[375825881,1753753848624,-460.0,0.00019726,2]
[375825883,1753753848634,-460.0,0.00019726,2]
[375825885,1753753848644,-460.0,0.00019726,2]
[375825887,1753753848654,-481.85508871,0.00019726,2]
[375825889,1753753848664,-466.98,0.00019726,2]
[375825891,1753753848673,-592.5,0.00019726,2]
[375825893,1753753848684,-461.60941473,0.00019726,2]
[375825895,1753753848694,-417.02914092,0.00019726,2]
[375825897,1753753848704,-460.0,0.00019726,2]
[375825899,1753753848713,-329.42868881,0.00019726,2]
[375825901,1753753848722,-687.98,0.00019726,2]
[375825902,1753753848732,-310.06861726,0.00019726,2]
[375825904,1753753848742,-460.0,0.00019726,2]
[375825906,1753753848751,-462.76504955,0.00019726,2]
[375825908,1753753848761,-484.98,0.00019726,2]
[375825910,1753753848771,-460.0,0.00019726,2]
[375825912,1753753848780,-461.64,0.00019726,2]
[375825914,1753753848791,-408.34002456,0.00019773,2]
[375825916,1753753848803,-501.93957377,0.00019773,2]
[375825918,1753753848813,-505.29341621,0.00019999,2]
[375825920,1753753848823,-2024.59203605,0.00019999,2]
[375825922,1753753848835,-2024.59203605,0.00019999,2]
[375825924,1753753848844,-2024.59203605,0.00019999,2]
[375825925,1753753848855,-2024.59203605,0.00019999,2]
[375825927,1753753848865,-2024.59203605,0.00019999,2]
[375825929,1753753848875,-2024.59203605,0.00019999,2]
[375825931,1753753848885,-2024.59203605,0.00019999,2]
[375825933,1753753848896,-2024.59203605,0.00019999,2]
[375825935,1753753848907,-2024.59203605,0.00019999,2]
[375825937,1753753848918,-2024.59203605,0.00019999,2]
[375825939,1753753848928,-2024.59203605,0.00019999,2]
[375825941,1753753848939,-2024.59203605,0.00019999,2]
[375825943,1753753848950,-2024.59203605,0.00019999,2]
[375825945,1753753848960,-2024.59203605,0.00019999,2]
[375825947,1753753848970,-2024.59203605,0.00019999,2]
[375825949,1753753848981,-2024.59203605,0.00019999,2]
[375825951,1753753848992,-2024.59203605,0.00019999,2]
[375825953,1753753849002,-2024.59203605,0.00019999,2]
[375825955,1753753849012,-2024.59203605,0.00019999,2]
[375825956,1753753849022,-2186.55939892,0.00019999,2]
[375825958,1753753849032,-2186.55939892,0.00019999,2]
[375825960,1753753849042,-2186.55939892,0.00019999,2]
[375825962,1753753849056,-2186.55939892,0.00019999,2]
[375825964,1753753849066,-2186.55939892,0.00019999,2]
[375825966,1753753849076,-2186.55939892,0.00019999,2]
[375825968,1753753849086,-2186.55939892,0.00019999,2]
[375825970,1753753849096,-2186.55939892,0.00019999,2]
[375825972,1753753849106,-2186.55939892,0.00019999,2]
[375825974,1753753849117,-460.0,0.0002,2]
[375825976,1753753849127,-151.0,0.0002,2]
[375825978,1753753849137,-550.69450049,0.0002,2]
[375825980,1753753849147,-460.0,0.0002,2]
[375825982,1753753849156,-460.0,0.0002,2]
[375825983,1753753849166,-460.0,0.0002,2]
[375825985,1753753849175,-461.41279161,0.0002,2]
[375825987,1753753849185,-460.0,0.0002,2]
[375825989,1753753849195,-460.0,0.0002,2]
[375825991,1753753849205,-460.0,0.0002,2]
[375825993,1753753849214,-460.0,0.0002,2]
[375825995,1753753849225,-460.0,0.0002,2]
[375825997,1753753849235,-461.58073687,0.0002,2]
[375825999,1753753849245,-460.0,0.0002,2]
[375826001,1753753849255,-460.0,0.0002,2]
[375826003,1753753849268,-461.5482914,0.0002,2]
[375826005,1753753849278,-151.0,0.0002,2]
[375826007,1753753849288,-151.0,0.0002,2]
[375826009,1753753849299,-460.0,0.0002,2]
[375826011,1753753849308,-460.0,0.0002,2]
[375826013,1753753849317,-460.0,0.0002,2]
[375826015,1753753849327,-461.68127418,0.0002,2]
[375826016,1753753849337,-463.06415516,0.0002,2]
[375826018,1753753849348,-518.33497506,0.0002,2]
[375826020,1753753849358,-460.0,0.0002,2]
[375826022,1753753849368,-460.0,0.0002,2]
[375826024,1753753849378,-460.0,0.0002,2]
[375826026,1753753849387,-460.0,0.0002,2]
[375826028,1753753849397,-462.55046782,0.0002,2]
[375826030,1753753849406,-460.0,0.0002,2]
[375826032,1753753849416,-460.0,0.0002,2]
[375826034,1753753849426,-461.96962268,0.0002,2]
[375826036,1753753849435,-231.22660135,0.0002,2]
[375826038,1753753849445,-464.5623123,0.0002,2]
[375826040,1753753849455,-461.77728921,0.0002,2]
[375826042,1753753849464,-1337.37,0.0002,2]
[375826044,1753753849473,-460.0,0.0002,2]
[375826046,1753753849483,-460.0,0.0002,2]
[375826047,1753753849492,-460.0,0.0002,2]
[375826049,1753753849502,-460.0,0.0002,2]
[375826051,1753753849511,-186.32066324,0.0002,2]
[375826053,1753753849521,-466.23202035,0.0002,2]
[375826055,1753753849531,-460.0,0.0002,2]
[375826057,1753753849541,-460.0,0.0002,2]
[375826059,1753753849552,-460.0,0.0002,2]
[375826061,1753753849561,-460.0,0.0002,2]
[375826063,1753753849572,-460.0,0.0002,2]
[375826065,1753753849582,-466.82259585,0.0002,2]
[375826067,1753753849592,-460.0,0.0002,2]
[375826069,1753753849601,-460.0,0.0002,2]
[375826071,1753753849611,-460.0,0.0002,2]
[375826073,1753753849621,-460.0,0.0002,2]
[375826075,1753753849631,-460.0,0.0002,2]
[375826077,1753753849641,-460.0,0.0002,2]
[375826079,1753753849650,-633.03,0.0002,2]
[375826080,1753753849660,-461.37080062,0.0002,2]
[375826082,1753753849670,-464.80456011,0.0002,2]
[375826084,1753753849679,-460.0,0.0002,2]
[375826086,1753753849689,-460.0,0.0002,2]
[375826088,1753753849698,-464.29891029,0.0002,2]
[375826090,1753753849708,-463.75741096,0.0002,2]
[375826092,1753753849717,-460.0,0.0002,2]
[375826094,1753753849727,-466.02503233,0.0002,2]
[375826096,1753753849737,-460.0,0.0002,2]
[375826098,1753753849747,-460.0,0.0002,2]
[375826100,1753753849758,-464.89011613,0.0002,2]
[375826102,1753753849768,-460.0,0.0002,2]
[375826104,1753753849778,-460.0,0.0002,2]
[375826106,1753753849787,-465.37787497,0.0002,2]
[375826108,1753753849798,-466.36213536,0.0002,2]
[375826110,1753753849808,-460.0,0.0002,2]
[375826112,1753753849817,-460.0,0.0002,2]
[375826114,1753753849827,-460.0,0.0002,2]
[375826116,1753753849836,-460.0,0.0002,2]
[375826118,1753753849846,-460.0,0.0002,2]
[375826120,1753753849856,-460.0,0.0002,2]
[375826122,1753753849865,-460.0,0.0002,2]
[375826124,1753753849875,-463.84938887,0.0002,2]
[375826126,1753753849885,-460.0,0.0002,2]
[375826127,1753753849894,-650.21,0.0002,2]
[375826129,1753753849903,-460.0,0.0002,2]
[375826131,1753753849913,-462.65738064,0.0002,2]
[375826133,1753753849922,-463.00934074,0.0002,2]
[375826135,1753753849932,-460.0,0.0002,2]
[375826137,1753753849942,-460.0,0.0002,2]
[375826139,1753753849951,-460.0,0.0002,2]
[375826141,1753753849960,-460.0,0.0002,2]
[375826143,1753753849969,-460.0,0.0002,2]
[375826145,1753753849979,-552.56667317,0.0002,2]
[375826147,1753753849988,-460.0,0.0002,2]
[375826149,1753753849998,-460.0,0.0002,2]
[375826151,1753753850008,-460.0,0.0002,2]
[375826153,1753753850017,-479.36604509,0.0002,2]
[375826155,1753753850027,-460.0,0.0002,2]
[375826157,1753753850036,-460.0,0.0002,2]
[375826159,1753753850047,-187.2576027,0.0002,2]
[375826161,1753753850056,-460.0,0.0002,2]
[375826162,1753753850065,-460.0,0.0002,2]
[375826177,1753753850226,-609.61,0.0002,2]
[375826178,1753753850237,-463.27987226,0.0002,2]
[375826179,1753753850247,-460.0,0.0002,2]
[375826180,1753753850259,-460.0,0.0002,2]
[375826181,1753753850271,-460.0,0.0002,2]
[375826182,1753753850281,-460.0,0.0002,2]
[375826183,1753753850290,-460.0,0.0002,2]
[375826184,1753753850303,-460.0,0.0002,2]
[375826185,1753753850313,-460.0,0.0002,2]
[375826187,1753753850324,-5391.93,0.0002,2]
[375826189,1753753850335,-436.47510739,0.0002,2]
[375826191,1753753850346,-460.0,0.0002,2]
[375826193,1753753850356,-460.0,0.0002,2]
[375826195,1753753850366,-470.65233797,0.0002,2]
[375826197,1753753850376,-1256.18,0.0002,2]
[375826199,1753753850386,-460.0,0.0002,2]
[375826201,1753753850396,-460.0,0.0002,2]
[375826203,1753753850406,-460.0,0.0002,2]
[375826206,1753753850416,-460.0,0.0002,2]
[375826208,1753753850426,-456.81655624,0.0002,2]
[375826209,1753753850436,-460.0,0.0002,2]
[375826212,1753753850446,-460.0,0.0002,2]
[375826214,1753753850456,-463.56432003,0.0002,2]
[375826216,1753753850466,-504.45068755,0.0002,2]
[375826218,1753753850476,-234.15247166,0.0002,2]
[375826220,1753753850486,-547.99866152,0.0002,2]
[375826222,1753753850495,-460.0,0.0002,2]
[375826223,1753753850505,-460.0,0.0002,2]
[375826225,1753753850515,-460.0,0.0002,2]
[375826227,1753753850524,-460.0,0.0002,2]
[375826229,1753753850534,-460.0,0.0002,2]
[375826231,1753753850543,-460.0,0.0002,2]
[375826233,1753753850556,-460.0,0.0002,2]
[375826235,1753753850566,-460.0,0.0002,2]
[375826237,1753753850575,-2142.14,0.0002,2]
[375826239,1753753850585,-460.0,0.0002,2]
[375826241,1753753850595,-460.0,0.0002,2]
[375826243,1753753850605,-460.0,0.0002,2]
[375826245,1753753850614,-460.0,0.0002,2]
[375826247,1753753850624,-460.0,0.0002,2]
[375826249,1753753850635,-573.16,0.0002,2]
[375826251,1753753850644,-461.97,0.0002,2]
[375826253,1753753850653,-463.4912556,0.0002,2]
[375826255,1753753850662,-465.50097684,0.0002,2]
[375826257,1753753850672,-460.0,0.0002,2]
[375826259,1753753850681,-460.0,0.0002,2]
[375826261,1753753850690,-460.0,0.0002,2]
[375826263,1753753850700,-460.0,0.0002,2]
[375826265,1753753850709,-460.0,0.0002,2]
[375826267,1753753850718,-465.06817194,0.0002,2]
[375826269,1753753850728,-460.0,0.0002,2]
[375826271,1753753850737,-460.0,0.0002,2]
[375826273,1753753850747,-460.0,0.0002,2]
[375826275,1753753850757,-460.0,0.0002,2]
[375826277,1753753850767,-463.36225663,0.0002,2]
[375826279,1753753850777,-1126.31,0.0002,2]
[375826281,1753753850787,-460.0,0.0002,2]
[375826283,1753753850798,-460.0,0.0002,2]
[375826285,1753753850808,-460.0,0.0002,2]
[375826287,1753753850818,-641.3,0.0002,2]
[375826289,1753753850827,-460.0,0.0002,2]
[375826291,1753753850837,-1466.07,0.0002,2]
[375826293,1753753850847,-460.0,0.0002,2]
[375826295,1753753850858,-460.0,0.0002,2]
[375826297,1753753850867,-460.0,0.0002,2]
[375826299,1753753850877,-466.51538751,0.0002,2]
[375826302,1753753850888,-1416.76,0.0002,2]
[375826304,1753753850897,-460.0,0.0002,2]
[375826306,1753753850906,-1961.96,0.0002,2]
[375826308,1753753850916,-460.0,0.0002,2]
[375826309,1753753850926,-460.0,0.0002,2]
[375826311,1753753850935,-460.0,0.0002,2]
[375826313,1753753850945,-460.0,0.0002,2]
[375826315,1753753850955,-460.0,0.0002,2]
[375826317,1753753850964,-460.0,0.0002,2]
[375826319,1753753850974,-467.11895818,0.0002,2]
[375826321,1753753850984,-440.85262255,0.0002,2]
[375826323,1753753850993,-460.0,0.0002,2]
[375826325,1753753851003,-460.0,0.0002,2]
[375826327,1753753851012,-460.0,0.0002,2]
[375826329,1753753851021,-460.0,0.0002,2]
[375826331,1753753851031,-460.0,0.0002,2]
[375826333,1753753851041,-460.0,0.0002,2]
[375826335,1753753851052,-467.46191031,0.0002,2]
[375826337,1753753851061,-460.0,0.0002,2]
[375826339,1753753851071,-460.0,0.0002,2]
[375826341,1753753851080,-1570.48,0.0002,2]
[375826343,1753753851090,-687.97,0.0002,2]
[375826345,1753753851099,-460.0,0.0002,2]
[375826347,1753753851109,-460.0,0.0002,2]
[375826349,1753753851119,-1981.62,0.0002,2]
[375826351,1753753851129,-460.0,0.0002,2]
[375826353,1753753851138,-460.0,0.0002,2]
[375826355,1753753851147,-363.09443268,0.0002,2]
[375826357,1753753851157,-462.96982431,0.0002,2]
[375826359,1753753851166,-460.0,0.0002,2]
[375826361,1753753851175,-4096.91,0.0002,2]
[375826363,1753753851184,-1320.75,0.0002,2]
[375826365,1753753851195,-460.0,0.0002,2]
[375826367,1753753851205,-1488.78,0.0002,2]
[375826369,1753753851215,-460.0,0.0002,2]
[375826371,1753753851225,-460.0,0.0002,2]
[375826373,1753753851236,-1227.47,0.0002,2]
[375826375,1753753851246,-460.0,0.0002,2]
[375826377,1753753851256,-460.0,0.0002,2]
[375826380,1753753851270,-460.0,0.0002,2]
[375826382,1753753851280,-460.0,0.0002,2]
[375826383,1753753851290,-460.0,0.0002,2]
[375826385,1753753851304,-460.0,0.0002,2]
[375826387,1753753851314,-504.73,0.0002,2]
[375826389,1753753851324,-471.69149632,0.0002,2]
[375826391,1753753851334,-460.0,0.0002,2]
[375826393,1753753851344,-471.50099693,0.0002,2]
[375826395,1753753851354,-460.0,0.0002,2]
[375826397,1753753851363,-543.91,0.0002,2]
[375826399,1753753851373,-460.0,0.0002,2]
[375826401,1753753851383,-460.0,0.0002,2]
[375826403,1753753851392,-460.0,0.0002,2]
[375826405,1753753851403,-226.52208843,0.0002,2]
[375826407,1753753851413,-544.0906726,0.0002,2]
[375826409,1753753851423,-460.0,0.0002,2]
[375826411,1753753851432,-460.0,0.0002,2]
[375826413,1753753851441,-466.98,0.0002,2]
[375826415,1753753851451,-592.5,0.0002,2]
[375826417,1753753851461,-465.37497229,0.0002,2]
[375826419,1753753851470,-687.98,0.0002,2]
[375826421,1753753851481,-462.6262964,0.0002,2]
[375826423,1753753851491,-484.98,0.0002,2]
[375826425,1753753851502,-460.0,0.0002,2]
[375826427,1753753851511,-461.64,0.0002,2]
[375826429,1753753851521,-221.360364,0.00020187,2]
[375826431,1753753851531,-214.87999826,0.00020192,2]
[375826433,1753753851541,-160.0,0.00020192,2]
[375826435,1753753851552,-216.06083566,0.00020192,2]
[375826437,1753753851562,-160.0,0.00020192,2]
[375826439,1753753851571,-454.6043428,0.00020192,2]
[375826441,1753753851581,-840.90880427,0.00020192,2]
[375826443,1753753851590,-12634.73134317,0.00020192,2]
[375826445,1753753851600,-160.0,0.00020231,2]
[375826447,1753753851610,-460.0,0.00020273,2]
[375826449,1753753851619,-151.0,0.00020273,2]
[375826451,1753753851629,-151.0,0.00020273,2]
[375826453,1753753851638,-460.0,0.00020273,2]
[375826455,1753753851648,-460.0,0.00020273,2]
[375826457,1753753851657,-460.0,0.00020273,2]
[375826459,1753753851666,-460.0,0.00020273,2]
[375826461,1753753851676,-460.0,0.00020273,2]
[375826463,1753753851685,-460.0,0.00020273,2]
[375826465,1753753851695,-460.0,0.00020273,2]
[375826467,1753753851704,-460.0,0.00020273,2]
[375826469,1753753851714,-460.0,0.00020273,2]
[375826471,1753753851724,-460.0,0.00020273,2]
[375826473,1753753851733,-460.0,0.00020273,2]
[375826475,1753753851743,-379.49281714,0.00020273,2]
[375826477,1753753851752,-460.0,0.00020273,2]
[375826479,1753753851764,-460.0,0.00020273,2]
[375826481,1753753851780,-316.45903582,0.00020273,2]
[375826483,1753753851789,-476.24977723,0.00020273,2]
[375826485,1753753851799,-236.79421173,0.00020273,2]
[375826487,1753753851812,-462.89098442,0.00020273,2]
[375826489,1753753851821,-1337.37,0.00020273,2]
[375826491,1753753851831,-460.0,0.00020273,2]
[375826493,1753753851841,-460.0,0.00020273,2]
[375826495,1753753851850,-460.0,0.00020273,2]
[375826497,1753753851861,-462.74558758,0.00020273,2]
[375826499,1753753851870,-460.0,0.00020273,2]
[375826501,1753753851880,-463.76818386,0.00020273,2]
[375826503,1753753851890,-438.43369676,0.00020273,2]
[375826505,1753753851899,-460.0,0.00020273,2]
[375826507,1753753851909,-460.0,0.00020273,2]
[375826508,1753753851918,-460.0,0.00020273,2]
[375826510,1753753851928,-460.0,0.00020273,2]
[375826512,1753753851937,-460.0,0.00020273,2]
[375826514,1753753851947,-460.0,0.00020273,2]
[375826516,1753753851957,-164.26348748,0.00020273,2]
[375826518,1753753851966,-460.0,0.00020273,2]
[375826520,1753753851975,-633.03,0.00020273,2]
[375826522,1753753851985,-463.10225313,0.00020273,2]
[375826524,1753753851994,-460.0,0.00020273,2]
[375826526,1753753852004,-460.0,0.00020273,2]
[375826528,1753753852013,-296.63634825,0.00020273,2]
[375826530,1753753852022,-470.07396704,0.00020273,2]
[375826532,1753753852031,-463.43428763,0.00020273,2]
[375826534,1753753852041,-460.0,0.00020273,2]
[375826536,1753753852053,-460.0,0.00020273,2]
[375826538,1753753852063,-465.53554109,0.00020273,2]
[375826540,1753753852072,-460.0,0.00020273,2]
[375826542,1753753852082,-460.0,0.00020273,2]
[375826544,1753753852091,-466.13213713,0.00020273,2]
[375826546,1753753852101,-460.0,0.00020273,2]
[375826548,1753753852111,-460.0,0.00020273,2]
[375826550,1753753852120,-460.0,0.00020273,2]
[375826552,1753753852129,-650.21,0.00020273,2]
[375826554,1753753852139,-601.43046983,0.00020273,2]
[375826556,1753753852148,-460.0,0.00020273,2]
[375826558,1753753852158,-460.0,0.00020273,2]
[375826560,1753753852168,-460.0,0.00020273,2]
[375826562,1753753852178,-460.0,0.00020273,2]
[375826564,1753753852187,-407.63402983,0.00020273,2]
[375826566,1753753852197,-460.0,0.00020273,2]
[375826568,1753753852207,-460.0,0.00020273,2]
[375826570,1753753852216,-460.0,0.00020273,2]
[375826572,1753753852226,-460.0,0.00020273,2]
[375826574,1753753852235,-460.0,0.00020273,2]
[375826576,1753753852244,-511.40957941,0.00020273,2]
[375826578,1753753852254,-609.61,0.00020273,2]
[375826580,1753753852267,-460.0,0.00020273,2]
[375826582,1753753852276,-460.0,0.00020273,2]
[375826584,1753753852286,-339.29140121,0.00020273,2]
[375826586,1753753852295,-466.54469587,0.00020273,2]
[375826588,1753753852309,-460.0,0.00020273,2]
[375826590,1753753852319,-464.36744281,0.00020273,2]
[375826592,1753753852328,-460.0,0.00020273,2]
[375826594,1753753852338,-5391.93,0.00020273,2]
[375826596,1753753852349,-460.0,0.00020273,2]
[375826598,1753753852359,-460.0,0.00020273,2]
[375826600,1753753852368,-1256.18,0.00020273,2]
[375826602,1753753852377,-460.0,0.00020273,2]
[375826604,1753753852387,-466.88179882,0.00020273,2]
[375826606,1753753852396,-460.0,0.00020273,2]
[375826608,1753753852405,-464.6650665,0.00020273,2]
[375826610,1753753852415,-460.0,0.00020273,2]
[375826611,1753753852423,-460.0,0.00020273,2]
[375826614,1753753852433,-460.0,0.00020273,2]
[375826616,1753753852443,-460.0,0.00020273,2]
[375826617,1753753852453,-460.0,0.00020273,2]
[375826619,1753753852462,-464.8031635,0.00020273,2]
[375826621,1753753852471,-463.10183999,0.00020273,2]
[375826623,1753753852481,-528.92959852,0.00020273,2]
[375826625,1753753852491,-460.0,0.00020273,2]
[375826628,1753753852501,-460.0,0.00020273,2]
[375826630,1753753852510,-2142.14,0.00020273,2]
[375826631,1753753852519,-460.0,0.00020273,2]
[375826633,1753753852529,-468.64273921,0.00020273,2]
[375826635,1753753852539,-460.0,0.00020273,2]
[375826638,1753753852551,-460.0,0.00020273,2]
[375826640,1753753852560,-460.0,0.00020273,2]
[375826641,1753753852570,-573.16,0.00020273,2]
[375826643,1753753852579,-461.97,0.00020273,2]
[375826645,1753753852597,-460.0,0.00020273,2]
[375826648,1753753852607,-460.0,0.00020273,2]
[375826649,1753753852616,-460.0,0.00020273,2]
[375826651,1753753852626,-460.0,0.00020273,2]
[375826653,1753753852636,-460.0,0.00020273,2]
[375826655,1753753852645,-460.0,0.00020273,2]
[375826657,1753753852654,-460.0,0.00020273,2]
[375826659,1753753852664,-460.0,0.00020273,2]
[375826661,1753753852673,-460.0,0.00020273,2]
[375826663,1753753852683,-460.0,0.00020273,2]
[375826665,1753753852692,-1126.31,0.00020273,2]
[375826667,1753753852702,-460.0,0.00020273,2]
[375826669,1753753852711,-460.0,0.00020273,2]
[375826671,1753753852720,-641.3,0.00020273,2]
[375826673,1753753852729,-471.18258806,0.00020273,2]
[375826675,1753753852739,-1466.07,0.00020273,2]
[375826690,1753753852873,-460.0,0.00020273,2]
[375826692,1753753852885,-460.0,0.00020273,2]
[375826695,1753753852895,-460.0,0.00020273,2]
[375826696,1753753852905,-1416.76,0.00020273,2]
[375826698,1753753852915,-460.0,0.00020273,2]
[375826700,1753753852924,-1961.96,0.00020273,2]
[375826701,1753753852934,-460.0,0.00020273,2]
[375826703,1753753852943,-460.0,0.00020273,2]
[375826705,1753753852953,-460.0,0.00020273,2]
[375826707,1753753852963,-372.42501981,0.00020273,2]
[375826709,1753753852973,-460.0,0.00020273,2]
[375826711,1753753852982,-460.0,0.00020273,2]
[375826713,1753753852991,-460.0,0.00020273,2]
[375826715,1753753853001,-460.0,0.00020273,2]
[375826717,1753753853011,-460.0,0.00020273,2]
[375826719,1753753853020,-464.43264746,0.00020273,2]
[375826721,1753753853030,-460.0,0.00020273,2]
[375826723,1753753853039,-195.09908609,0.00020273,2]
[375826725,1753753853049,-460.0,0.00020273,2]
[375826726,1753753853060,-460.0,0.00020273,2]
[375826728,1753753853069,-1570.48,0.00020273,2]
[375826730,1753753853078,-687.97,0.00020273,2]
[375826732,1753753853088,-460.0,0.00020273,2]
[375826734,1753753853097,-460.0,0.00020273,2]
[375826736,1753753853106,-1981.62,0.00020273,2]
[375826738,1753753853115,-460.0,0.00020273,2]
[375826740,1753753853125,-460.0,0.00020273,2]
[375826742,1753753853134,-460.0,0.00020273,2]
[375826744,1753753853143,-1320.75,0.00020273,2]
[375826746,1753753853153,-4096.91,0.00020273,2]
[375826748,1753753853163,-460.0,0.00020273,2]
[375826750,1753753853173,-1488.78,0.00020273,2]
[375826752,1753753853182,-469.63974907,0.00020273,2]
[375826754,1753753853192,-460.0,0.00020273,2]
[375826756,1753753853201,-1227.47,0.00020273,2]